[Event "RUS-ch Blitz Women 2018"]
[Site "Sochi"]
[Date "2018.10.07"]
[Round "13"]
[White "Bivol, Alina"]
[Black "Shafigullina, Zarina"]
[Result "1-0"]
[ECO "A05"]
[WhiteElo "2403"]
[BlackElo "2150"]
[Annotator "NA"]
[PlyCount "45"]
[EventDate "2018.10.07"]
[EventType "swiss"]
[EventCountry "RUS"]
[SourceTitle "playchess.com"]
[Source "ChessBase"]
[SourceQuality "1"]
[TimeControl "180+2"]

1. Nf3 {[%emt 0:00:00]} Nf6 {[%emt 0:00:00]} 2. g3 {[%emt 0:00:00]} b6 {[%emt 0:00:00]} 3. Bg2 Bb7 4. c4 {[%emt 0:00:02]} c5 {[%emt 0:00:01]} 5. O-O {[%emt 0:00:02]} g6 {[%emt 0:00:01]} 6. Nc3 {[%emt 0:00:01]} Bg7 {[%emt 0:00:01]} 7. e3 {[%emt 0:00:02]} O-O {[%emt 0:00:02]} 8. d4 {[%emt 0:00:01]} cxd4 {[%emt 0:00:02]} 9. exd4 {[%emt 0:00:00]} d5 {[%emt 0:00:01]} 10. Ne5 {[%emt 0:00:05]} Ne4 {[%emt 0:00:13]} 11. Nxd5 {[%emt 0:00:09]} Bxd5 {[%emt 0:00:21]} 12. cxd5 {[%emt 0:00:01]} Qxd5 {[%emt 0:00:10]} 13. Re1 {[%emt 0:00:12]} f5 {[%emt 0:00:01]} 14. Bf4 {[%emt 0:00:17]} Nc6 {[%emt 0:00:28]} 15. Nxc6 {[%emt 0:00:30]} Qxc6 {[%emt 0:00:03]} 16. Qb3+ {[%emt 0:00:01]} Kh8 {[%emt 0:00:13]} 17. Rac1 {[%emt 0:00:06]} Qb7 {[%emt 0:00:08]} 18. Rc7 {[%emt 0:00:05]} Qa6 {[%emt 0:00:07]} 19. Rxe7 {[%emt 0:00:03]} Bxd4 {[%emt 0:00:33]} 20. Bxe4 {[%emt 0:00:18]} fxe4 {[%emt 0:00:01]} 21. R1xe4 {[%emt 0:00:07]} Bf6 {[%emt 0:00:39]} 22. Rf7 {[%emt 0:00:07]} Rxf7 {[%emt 0:00:36]} 23. Qxf7 {[%emt 0:00:01]} 1-0

[Event "RUS-ch Blitz Women 2018"]
[Site "Sochi"]
[Date "2018.10.07"]
[Round "13"]
[White "Ambartsumova, Karina"]
[Black "Sukhareva, Evgeniya"]
[Result "1-0"]
[ECO "B06"]
[WhiteElo "2379"]
[BlackElo "2125"]
[Annotator "NA"]
[PlyCount "95"]
[EventDate "2018.10.07"]
[EventType "swiss"]
[EventCountry "RUS"]
[SourceTitle "playchess.com"]
[Source "ChessBase"]
[SourceQuality "1"]
[TimeControl "180+2"]

1. e4 {[%emt 0:00:00]} g6 {[%emt 0:00:00]} 2. d4 {[%emt 0:00:00]} Bg7 {[%emt 0:00:00]} 3. Nc3 {[%emt 0:00:02]} d6 {[%emt 0:00:01]} 4. Be3 {[%emt 0:00:06]} c6 {[%emt 0:00:01]} 5. h4 {[%emt 0:00:08]} Nf6 {[%emt 0:00:03]} 6. Qd2 {[%emt 0:00:06]} h5 {[%emt 0:00:03]} 7. f3 {[%emt 0:00:02]} b5 {[%emt 0:00:01]} 8. Nh3 {[%emt 0:00:03]} Qc7 {[%emt 0:00:05]} 9. Ng5 {[%emt 0:00:04]} Nbd7 {[%emt 0:00:01]} 10. a4 {[%emt 0:00:08]} b4 {[%emt 0:00:02]} 11. Nd1 {[%emt 0:00:01]} a5 {[%emt 0:00:01]} 12. c3 {[%emt 0:00:02]} bxc3 {[%emt 0:00:02]} 13. bxc3 {[%emt 0:00:00]} e5 {[%emt 0:00:08]} 14. Nf2 {[%emt 0:00:09]} Ba6 {[%emt 0:00:11]} 15. Bxa6 {[%emt 0:00:07]} Rxa6 {[%emt 0:00:01]} 16. O-O {[%emt 0:00:05]} O-O {[%emt 0:00:01]} 17. Rfd1 {[%emt 0:00:09]} c5 {[%emt 0:00:03]} 18. Rab1 {[%emt 0:00:19]} exd4 {[%emt 0:00:11]} 19. cxd4 {[%emt 0:00:02]} Nh7 {[%emt 0:00:02]} 20. d5 {[%emt 0:00:58]} Nxg5 {[%emt 0:00:30]} 21. Bxg5 {[%emt 0:00:01]} Rb8 {[%emt 0:00:12]} 22. Qc2 {[%emt 0:00:11]} Rb4 {[%emt 0:00:03]} 23. Bd2 {[%emt 0:00:04]} Rb8 {[%emt 0:00:13]} 24. Qc4 {[%emt 0:00:29]} Raa8 {[%emt 0:00:23]} 25. Rb5 {[%emt 0:00:05]} Nb6 26. Qc2 Qd8 {[%emt 0:00:19]} 27. Bxa5 {[%emt 0:00:03]} Rxa5 {[%emt 0:00:06]} 28. Rxa5 {[%emt 0:00:01]} Qxh4 {[%emt 0:00:01]} 29. Rb5 {[%emt 0:00:08]} Be5 {[%emt 0:00:06]} 30. a5 {[%emt 0:00:03]} Nd7 {[%emt 0:00:06]} 31. Rxb8+ {[%emt 0:00:03]} Nxb8 {[%emt 0:00:01]} 32. Rb1 {[%emt 0:00:01]} Na6 {[%emt 0:00:07]} 33. Qe2 {[%emt 0:00:03]} Nb4 {[%emt 0:00:24]} 34. a6 {[%emt 0:00:01]} Qh2+ {[%emt 0:00:35]} 35. Kf1 {[%emt 0:00:01]} Nxa6 {[%emt 0:00:02]} 36. Qxa6 {[%emt 0:00:02]} Bd4 {[%emt 0:00:03]} 37. Qe2 {[%emt 0:00:12]} h4 {[%emt 0:00:00]} 38. Rd1 {[%emt 0:00:08]} Be5 {[%emt 0:00:02]} 39. Rb1 {[%emt 0:00:04]} Qg3 {[%emt 0:00:01]} 40. Nh3 {[%emt 0:00:02]} Qh2 {[%emt 0:00:02]} 41. Rd1 {[%emt 0:00:04]} c4 {[%emt 0:00:03]} 42. Qxc4 {[%emt 0:00:03]} Qh1+ {[%emt 0:00:01]} 43. Ng1 {[%emt 0:00:01]} Bh2 {[%emt 0:00:01]} 44. Qd4 {[%emt 0:00:01]} Be5 {[%emt 0:00:01]} 45. Qf2 {[%emt 0:00:01]} Bg3 {[%emt 0:00:03]} 46. Qe3 {[%emt 0:00:01]} Be5 {[%emt 0:00:05]} 47. f4 {[%emt 0:00:01]} Bg7 {[%emt 0:00:07]} 48. Qh3 {[%emt 0:00:02]} 1-0

[Event "RUS-ch Blitz Women 2018"]
[Site "Sochi"]
[Date "2018.10.07"]
[Round "13"]
[White "Vasilevich, Tatjana"]
[Black "Petrochenko, Maria"]
[Result "1-0"]
[ECO "D12"]
[WhiteElo "2360"]
[BlackElo "1903"]
[Annotator "NA"]
[PlyCount "127"]
[EventDate "2018.10.07"]
[EventType "swiss"]
[EventCountry "RUS"]
[SourceTitle "playchess.com"]
[Source "ChessBase"]
[SourceQuality "1"]
[TimeControl "180+2"]

1. d4 {[%emt 0:00:00]} d5 {[%emt 0:00:00]} 2. c4 {[%emt 0:00:00]} c6 {[%emt 0:00:00]} 3. Nf3 {[%emt 0:00:01]} Nf6 {[%emt 0:00:01]} 4. e3 {[%emt 0:00:00]} Bf5 {[%emt 0:00:05]} 5. Nc3 {[%emt 0:00:01]} e6 {[%emt 0:00:01]} 6. Nh4 {[%emt 0:00:01]} Bg6 {[%emt 0:00:15]} 7. Nxg6 {[%emt 0:00:05]} hxg6 {[%emt 0:00:01]} 8. a3 {[%emt 0:00:04]} Nbd7 {[%emt 0:00:03]} 9. g3 {[%emt 0:00:14]} Bd6 {[%emt 0:00:06]} 10. Bd3 {[%emt 0:00:01]} Qe7 {[%emt 0:00:10]} 11. c5 {[%emt 0:00:04]} Bc7 {[%emt 0:00:01]} 12. f4 {[%emt 0:00:01]} b6 {[%emt 0:00:06]} 13. b4 {[%emt 0:00:08]} a5 {[%emt 0:00:05]} 14. Bd2 {[%emt 0:00:22]} axb4 {[%emt 0:00:18]} 15. axb4 {[%emt 0:00:01]} O-O {[%emt 0:00:12]} 16. O-O {[%emt 0:00:05]} Rfb8 {[%emt 0:00:11]} 17. Qc2 {[%emt 0:00:14]} Qd8 {[%emt 0:00:14]} 18. b5 {[%emt 0:00:37]} bxc5 {[%emt 0:00:22]} 19. bxc6 {[%emt 0:00:02]} cxd4 {[%emt 0:00:02]} 20. exd4 {[%emt 0:00:11]} Nb6 {[%emt 0:00:02]} 21. Nb5 {[%emt 0:00:10]} Ne8 {[%emt 0:00:12]} 22. Rfb1 {[%emt 0:00:13]} Nd6 {[%emt 0:00:09]} 23. Ba5 {[%emt 0:00:14]} Nxb5 {[%emt 0:00:11]} 24. Bxb5 {[%emt 0:00:02]} Qd6 {[%emt 0:00:11]} 25. Qc5 {[%emt 0:00:16]} Qd8 {[%emt 0:00:11]} 26. Kg2 {[%emt 0:00:19]} Nc8 {[%emt 0:00:09]} 27. Bxc7 {[%emt 0:00:09]} Qxc7 {[%emt 0:00:02]} 28. Rxa8 {[%emt 0:00:10]} Rxa8 {[%emt 0:00:01]} 29. Bf1 {[%emt 0:00:02]} Nd6 {[%emt 0:00:05]} 30. Bd3 {[%emt 0:00:05]} Rc8 {[%emt 0:00:03]} 31. Rb6 {[%emt 0:00:02]} Kh7 {[%emt 0:00:08]} 32. Ra6 {[%emt 0:00:02]} Kg8 {[%emt 0:00:08]} 33. Bb5 {[%emt 0:00:05]} Ne4 {[%emt 0:00:12]} 34. Qb6 {[%emt 0:00:00]} Nc3 {[%emt 0:00:04]} 35. Qxc7 {[%emt 0:00:02]} Rxc7 {[%emt 0:00:01]} 36. Bd3 {[%emt 0:00:02]} Kf8 {[%emt 0:00:03]} 37. Kf3 {[%emt 0:00:02]} Ke7 {[%emt 0:00:00]} 38. Ke3 {[%emt 0:00:04]} Kd6 {[%emt 0:00:03]} 39. Kd2 {[%emt 0:00:00]} Ne4+ {[%emt 0:00:02]} 40. Bxe4 {[%emt 0:00:02]} dxe4 {[%emt 0:00:01]} 41. Ke3 {[%emt 0:00:01]} Rxc6 {[%emt 0:00:02]} 42. Ra7 {[%emt 0:00:03]} Rc7 {[%emt 0:00:04]} 43. Ra6+ {[%emt 0:00:01]} Kd5 {[%emt 0:00:01]} 44. Ra5+ {[%emt 0:00:01]} Kd6 {[%emt 0:00:02]} 45. Kxe4 {[%emt 0:00:01]} Rc2 {[%emt 0:00:03]} 46. h4 {[%emt 0:00:02]} Rc3 {[%emt 0:00:02]} 47. Ra6+ {[%emt 0:00:01]} Ke7 {[%emt 0:00:01]} 48. g4 {[%emt 0:00:01]} Rh3 {[%emt 0:00:05]} 49. d5 {[%emt 0:00:03]} exd5+ {[%emt 0:00:01]} 50. Kxd5 {[%emt 0:00:02]} Rxh4 {[%emt 0:00:02]} 51. Ra7+ {[%emt 0:00:01]} Kf6 {[%emt 0:00:04]} 52. g5+ {[%emt 0:00:01]} Kf5 {[%emt 0:00:00]} 53. Rxf7+ {[%emt 0:00:02]} Kg4 {[%emt 0:00:01]} 54. Ke5 {[%emt 0:00:03]} Rh7 {[%emt 0:00:04]} 55. Ke6 {[%emt 0:00:06]} Kf3 {[%emt 0:00:02]} 56. f5 gxf5 {[%emt 0:00:01]} 57. Kxf5 {[%emt 0:00:06]} Ke3 {[%emt 0:00:05]} 58. Kg6 {[%emt 0:00:01]} Rh1 {[%emt 0:00:02]} 59. Kxg7 {[%emt 0:00:02]} Rg1 {[%emt 0:00:01]} 60. g6 {[%emt 0:00:00]} Ke4 {[%emt 0:00:01]} 61. Kh7 {[%emt 0:00:01]} Rh1+ {[%emt 0:00:01]} 62. Kg8 {[%emt 0:00:01]} Ke5 {[%emt 0:00:02]} 63. g7 {[%emt 0:00:02]} Rg1 {[%emt 0:00:01]} 64. Kf8 {[%emt 0:00:01]} 1-0

[Event "RUS-ch Blitz Women 2018"]
[Site "Sochi"]
[Date "2018.10.07"]
[Round "13"]
[White "Voit, Daria"]
[Black "Dordzhieva, Dinara"]
[Result "1/2-1/2"]
[ECO "A06"]
[WhiteElo "2352"]
[BlackElo "2340"]
[Annotator "NA"]
[PlyCount "77"]
[EventDate "2018.10.07"]
[EventType "swiss"]
[EventCountry "RUS"]
[SourceTitle "playchess.com"]
[Source "ChessBase"]
[SourceQuality "1"]
[TimeControl "180+2"]

1. Nf3 {[%emt 0:00:00]} d5 {[%emt 0:00:01]} 2. g3 {[%emt 0:00:00]} Nf6 {[%emt 0:00:11]} 3. Bg2 {[%emt 0:00:01]} e6 {[%emt 0:00:00]} 4. O-O Be7 5. c4 {[%emt 0:00:04]} c6 {[%emt 0:00:01]} 6. d4 {[%emt 0:00:09]} O-O 7. Qc2 b6 {[%emt 0:00:03]} 8. Rd1 {[%emt 0:00:04]} Na6 {[%emt 0:00:05]} 9. Bf4 {[%emt 0:00:11]} Bb7 {[%emt 0:00:01]} 10. cxd5 {[%emt 0:00:12]} cxd5 {[%emt 0:00:10]} 11. Nc3 {[%emt 0:00:10]} Nb4 {[%emt 0:00:12]} 12. Qb3 {[%emt 0:00:05]} Rc8 {[%emt 0:00:01]} 13. a3 {[%emt 0:00:05]} Nc6 {[%emt 0:00:01]} 14. Rac1 {[%emt 0:00:05]} Na5 {[%emt 0:00:01]} 15. Qa2 {[%emt 0:00:02]} Nc4 {[%emt 0:00:02]} 16. Ne5 {[%emt 0:00:03]} Nh5 {[%emt 0:00:12]} 17. Nxc4 {[%emt 0:00:04]} Rxc4 {[%emt 0:00:01]} 18. Be3 {[%emt 0:00:08]} Qd7 {[%emt 0:00:02]} 19. Nb1 {[%emt 0:00:32]} Rfc8 {[%emt 0:00:01]} 20. Rxc4 {[%emt 0:00:02]} Rxc4 {[%emt 0:00:15]} 21. Rc1 {[%emt 0:00:04]} Rxc1+ {[%emt 0:00:34]} 22. Bxc1 Nf6 23. Nc3 {[%emt 0:00:03]} h6 {[%emt 0:00:04]} 24. Qb3 {[%emt 0:00:14]} Qc6 {[%emt 0:00:04]} 25. Bd2 {[%emt 0:00:03]} Ba6 {[%emt 0:00:02]} 26. e3 {[%emt 0:00:10]} Ne8 {[%emt 0:00:03]} 27. e4 {[%emt 0:00:12]} dxe4 {[%emt 0:00:31]} 28. Bxe4 {[%emt 0:00:01]} Qd7 {[%emt 0:00:06]} 29. d5 {[%emt 0:00:18]} Nf6 {[%emt 0:00:13]} 30. Bg2 {[%emt 0:00:02]} exd5 {[%emt 0:00:12]} 31. Nxd5 Nxd5 {[%emt 0:00:01]} 32. Bxd5 {[%emt 0:00:06]} Bc5 {[%emt 0:00:01]} 33. Kg2 {[%emt 0:00:07]} Qf5 {[%emt 0:00:04]} 34. Qf3 {[%emt 0:00:11]} Qxf3+ {[%emt 0:00:16]} 35. Kxf3 {[%emt 0:00:17]} Kf8 {[%emt 0:00:00]} 36. Bf4 {[%emt 0:00:04]} Bc8 {[%emt 0:00:07]} 37. b4 {[%emt 0:00:08]} Bd4 {[%emt 0:00:01]} 38. Bb8 {[%emt 0:00:01]} a6 {[%emt 0:00:01]} 39. Bd6+ {[%emt 0:00:04]} 1/2-1/2

[Event "RUS-ch Blitz Women 2018"]
[Site "Sochi"]
[Date "2018.10.07"]
[Round "13"]
[White "Kovanova, Baira"]
[Black "Goltseva, Ekaterina"]
[Result "1/2-1/2"]
[ECO "A34"]
[WhiteElo "2350"]
[BlackElo "2169"]
[Annotator "NA"]
[PlyCount "96"]
[EventDate "2018.10.07"]
[EventType "swiss"]
[EventCountry "RUS"]
[SourceTitle "playchess.com"]
[Source "ChessBase"]
[SourceQuality "1"]
[TimeControl "180+2"]

1. c4 {[%emt 0:00:00]} c5 {[%emt 0:00:00]} 2. Nc3 {[%emt 0:00:02]} Nf6 {[%emt 0:00:02]} 3. g3 {[%emt 0:00:02]} d5 {[%emt 0:00:02]} 4. cxd5 {[%emt 0:00:02]} Nxd5 {[%emt 0:00:02]} 5. Bg2 {[%emt 0:00:05]} Nc7 {[%emt 0:00:02]} 6. Nf3 {[%emt 0:00:12]} Nc6 {[%emt 0:00:01]} 7. d3 {[%emt 0:00:16]} e5 {[%emt 0:00:02]} 8. O-O {[%emt 0:00:04]} Be7 {[%emt 0:00:04]} 9. a4 {[%emt 0:00:05]} O-O {[%emt 0:00:11]} 10. a5 {[%emt 0:00:01]} Rb8 {[%emt 0:00:20]} 11. Nd2 {[%emt 0:00:22]} Nd4 {[%emt 0:00:08]} 12. Nc4 {[%emt 0:00:02]} f6 {[%emt 0:00:10]} 13. e3 {[%emt 0:00:44]} Nf5 {[%emt 0:00:31]} 14. Qc2 {[%emt 0:00:09]} Be6 {[%emt 0:00:06]} 15. b3 {[%emt 0:00:13]} Na6 {[%emt 0:00:14]} 16. Ba3 {[%emt 0:00:21]} Nb4 {[%emt 0:00:15]} 17. Bxb4 {[%emt 0:00:01]} cxb4 {[%emt 0:00:01]} 18. Ne4 {[%emt 0:00:24]} Qd7 {[%emt 0:00:08]} 19. Rfd1 {[%emt 0:00:01]} b5 {[%emt 0:00:27]} 20. axb6 axb6 21. Qb2 {[%emt 0:00:11]} b5 {[%emt 0:00:11]} 22. Na5 {[%emt 0:00:05]} Rbc8 {[%emt 0:00:01]} 23. d4 {[%emt 0:00:07]} exd4 {[%emt 0:00:05]} 24. exd4 {[%emt 0:00:02]} Bd5 {[%emt 0:00:06]} 25. Nc5 {[%emt 0:00:01]} Qd8 {[%emt 0:00:12]} 26. Nab7 {[%emt 0:00:07]} Bxb7 {[%emt 0:00:08]} 27. Nxb7 {[%emt 0:00:03]} Qb6 {[%emt 0:00:03]} 28. Qb1 {[%emt 0:00:04]} Nxd4 {[%emt 0:00:08]} 29. Qe4 {[%emt 0:00:01]} Nc6 {[%emt 0:00:03]} 30. Rac1 {[%emt 0:00:01]} Ne5 {[%emt 0:00:05]} 31. Qd5+ {[%emt 0:00:04]} Kh8 {[%emt 0:00:03]} 32. Kf1 {[%emt 0:00:02]} h6 {[%emt 0:00:05]} 33. Bh3 {[%emt 0:00:03]} Rb8 {[%emt 0:00:02]} 34. Bg2 {[%emt 0:00:02]} Rbc8 {[%emt 0:00:04]} 35. Bh3 {[%emt 0:00:01]} Rb8 {[%emt 0:00:00]} 36. Bg2 {[%emt 0:00:00]} Rbc8 {[%emt 0:00:04]} 37. Bh3 {[%emt 0:00:01]} Rc3 {[%emt 0:00:03]} 38. Bg2 {[%emt 0:00:07]} Rfc8 {[%emt 0:00:02]} 39. Rxc3 {[%emt 0:00:05]} bxc3 {[%emt 0:00:01]} 40. Be4 {[%emt 0:00:01]} c2 {[%emt 0:00:03]} 41. Rc1 {[%emt 0:00:00]} b4 {[%emt 0:00:04]} 42. Rxc2 {[%emt 0:00:03]} Rxc2 {[%emt 0:00:02]} 43. Bxc2 {[%emt 0:00:00]} Ng4 {[%emt 0:00:02]} 44. Qg2 {[%emt 0:00:03]} Qd4 {[%emt 0:00:02]} 45. h3 {[%emt 0:00:03]} Qa1+ {[%emt 0:00:01]} 46. Ke2 {[%emt 0:00:01]} Qe5+ {[%emt 0:00:01]} 47. Qe4 {[%emt 0:00:02]} Qxe4+ {[%emt 0:00:04]} 48. Bxe4 {[%emt 0:00:01]} Ne5 {[%emt 0:00:01]} 1/2-1/2

[Event "RUS-ch Blitz Women 2018"]
[Site "Sochi"]
[Date "2018.10.07"]
[Round "13"]
[White "Charochkina, Daria"]
[Black "Tomilova, Elena"]
[Result "1/2-1/2"]
[ECO "A50"]
[WhiteElo "2344"]
[BlackElo "2328"]
[Annotator "NA"]
[PlyCount "84"]
[EventDate "2018.10.07"]
[EventType "swiss"]
[EventCountry "RUS"]
[SourceTitle "playchess.com"]
[Source "ChessBase"]
[SourceQuality "1"]
[TimeControl "180+2"]

1. d4 {[%emt 0:00:00]} Nf6 {[%emt 0:00:00]} 2. c4 {[%emt 0:00:00]} b6 {[%emt 0:00:00]} 3. Nc3 {[%emt 0:00:04]} Bb7 {[%emt 0:00:02]} 4. Qc2 {[%emt 0:00:00]} d5 {[%emt 0:00:01]} 5. cxd5 {[%emt 0:00:10]} Nxd5 {[%emt 0:00:01]} 6. Nxd5 {[%emt 0:00:04]} Bxd5 {[%emt 0:00:08]} 7. e4 {[%emt 0:00:01]} Bb7 {[%emt 0:00:07]} 8. Nf3 {[%emt 0:00:02]} g6 {[%emt 0:00:05]} 9. Bc4 {[%emt 0:00:03]} Bg7 {[%emt 0:00:02]} 10. Bxf7+ {[%emt 0:00:46]} Kxf7 {[%emt 0:00:02]} 11. Ng5+ {[%emt 0:00:01]} Ke8 {[%emt 0:00:16]} 12. Ne6 {[%emt 0:00:01]} Qd6 {[%emt 0:00:06]} 13. Nxg7+ {[%emt 0:00:07]} Kf7 {[%emt 0:00:01]} 14. Bh6 {[%emt 0:00:01]} e6 {[%emt 0:00:28]} 15. O-O {[%emt 0:00:09]} Nd7 {[%emt 0:00:25]} 16. Rad1 {[%emt 0:00:29]} Rhg8 {[%emt 0:00:25]} 17. f4 {[%emt 0:00:31]} Rxg7 {[%emt 0:00:09]} 18. Bxg7 {[%emt 0:00:02]} Kxg7 {[%emt 0:00:01]} 19. f5 {[%emt 0:00:01]} exf5 {[%emt 0:00:04]} 20. exf5 {[%emt 0:00:03]} Nf6 {[%emt 0:00:04]} 21. d5 {[%emt 0:00:22]} Bxd5 {[%emt 0:00:07]} 22. fxg6 {[%emt 0:00:07]} hxg6 {[%emt 0:00:07]} 23. Qf2 {[%emt 0:00:14]} Rf8 {[%emt 0:00:06]} 24. Qe2 {[%emt 0:00:12]} c6 {[%emt 0:00:04]} 25. h3 {[%emt 0:00:03]} Rf7 {[%emt 0:00:09]} 26. Rde1 {[%emt 0:00:03]} Qg3 {[%emt 0:00:04]} 27. Qd2 {[%emt 0:00:04]} Qd6 {[%emt 0:00:14]} 28. Re3 {[%emt 0:00:07]} Re7 {[%emt 0:00:04]} 29. Rxe7+ {[%emt 0:00:04]} Qxe7 {[%emt 0:00:01]} 30. Qg5 {[%emt 0:00:03]} Qc5+ {[%emt 0:00:03]} 31. Kh1 {[%emt 0:00:02]} Ne4 {[%emt 0:00:05]} 32. Qe5+ {[%emt 0:00:03]} Kh7 {[%emt 0:00:04]} 33. Qc7+ {[%emt 0:00:02]} Kh6 {[%emt 0:00:03]} 34. Qf4+ {[%emt 0:00:03]} Kh7 {[%emt 0:00:03]} 35. Qc7+ {[%emt 0:00:01]} Kh6 {[%emt 0:00:00]} 36. Qf4+ {[%emt 0:00:00]} Kh7 {[%emt 0:00:01]} 37. Qc7+ {[%emt 0:00:01]} Kh6 {[%emt 0:00:05]} 38. Qf4+ {[%emt 0:00:01]} g5 {[%emt 0:00:02]} 39. Qe5 {[%emt 0:00:06]} Qc2 {[%emt 0:00:09]} 40. Qh8+ {[%emt 0:00:03]} Kg6 {[%emt 0:00:02]} 41. Qe8+ {[%emt 0:00:01]} Kh6 {[%emt 0:00:02]} 42. Qh8+ {[%emt 0:00:02]} Kg6 {[%emt 0:00:01]} 1/2-1/2

[Event "RUS-ch Blitz Women 2018"]
[Site "Sochi"]
[Date "2018.10.07"]
[Round "13"]
[White "Belenkaya, Dina"]
[Black "Vinokur, Yuliya"]
[Result "1-0"]
[ECO "B03"]
[WhiteElo "2329"]
[BlackElo "2170"]
[Annotator "NA"]
[PlyCount "89"]
[EventDate "2018.10.07"]
[EventType "swiss"]
[EventCountry "RUS"]
[SourceTitle "playchess.com"]
[Source "ChessBase"]
[SourceQuality "1"]
[TimeControl "180+2"]

1. e4 {[%emt 0:00:00]} Nf6 {[%emt 0:00:00]} 2. e5 {[%emt 0:00:00]} Nd5 {[%emt 0:00:00]} 3. d4 {[%emt 0:00:02]} d6 {[%emt 0:00:03]} 4. c4 {[%emt 0:00:04]} Nb6 {[%emt 0:00:01]} 5. exd6 {[%emt 0:00:02]} cxd6 {[%emt 0:00:01]} 6. Nc3 {[%emt 0:00:03]} g6 {[%emt 0:00:01]} 7. Be3 {[%emt 0:00:02]} Bg7 {[%emt 0:00:02]} 8. Rc1 {[%emt 0:00:03]} O-O {[%emt 0:00:02]} 9. b3 {[%emt 0:00:03]} Bf5 {[%emt 0:00:01]} 10. Be2 {[%emt 0:00:04]} d5 {[%emt 0:00:01]} 11. c5 {[%emt 0:00:01]} Nc8 {[%emt 0:00:03]} 12. Nf3 {[%emt 0:00:10]} Bg4 {[%emt 0:00:04]} 13. O-O {[%emt 0:00:03]} Nc6 {[%emt 0:00:01]} 14. a3 {[%emt 0:00:03]} e6 {[%emt 0:00:04]} 15. b4 {[%emt 0:00:01]} a6 {[%emt 0:00:02]} 16. h3 {[%emt 0:00:06]} Bxf3 {[%emt 0:00:01]} 17. Bxf3 {[%emt 0:00:01]} N8e7 {[%emt 0:00:01]} 18. Qd2 {[%emt 0:00:03]} Nf5 {[%emt 0:00:02]} 19. Ne2 {[%emt 0:00:10]} Nh4 {[%emt 0:00:24]} 20. Bg4 {[%emt 0:00:33]} h5 {[%emt 0:00:06]} 21. Bg5 {[%emt 0:00:01]} Bf6 {[%emt 0:00:01]} 22. Bxh4 {[%emt 0:00:02]} Bxh4 {[%emt 0:00:02]} 23. Bf3 {[%emt 0:00:01]} Bg5 {[%emt 0:00:02]} 24. Qd3 {[%emt 0:00:33]} Bxc1 {[%emt 0:00:04]} 25. Rxc1 {[%emt 0:00:01]} Qf6 {[%emt 0:00:04]} 26. Rd1 {[%emt 0:00:06]} Rad8 {[%emt 0:00:08]} 27. Nc3 {[%emt 0:00:04]} Ne7 {[%emt 0:00:10]} 28. a4 {[%emt 0:00:02]} Nf5 {[%emt 0:00:06]} 29. b5 {[%emt 0:00:07]} axb5 {[%emt 0:00:02]} 30. axb5 {[%emt 0:00:05]} Ra8 {[%emt 0:00:03]} 31. b6 {[%emt 0:00:31]} Ra3 {[%emt 0:00:40]} 32. Nxd5 exd5 {[%emt 0:00:23]} 33. Qxa3 {[%emt 0:00:04]} Nxd4 {[%emt 0:00:02]} 34. Bxd5 {[%emt 0:00:19]} Ne2+ {[%emt 0:00:06]} 35. Kf1 Nc3 {[%emt 0:00:21]} 36. Rd3 {[%emt 0:00:15]} Nxd5 {[%emt 0:00:02]} 37. Rxd5 {[%emt 0:00:01]} Re8 {[%emt 0:00:23]} 38. Qd3 {[%emt 0:00:12]} Ra8 39. g3 {[%emt 0:00:05]} Ra2 {[%emt 0:00:14]} 40. Rd8+ {[%emt 0:00:03]} Kh7 {[%emt 0:00:02]} 41. Qd4 {[%emt 0:00:02]} Rxf2+ {[%emt 0:00:14]} 42. Qxf2 {[%emt 0:00:01]} Qxd8 {[%emt 0:00:01]} 43. Qxf7+ {[%emt 0:00:02]} Kh6 {[%emt 0:00:01]} 44. Qf4+ {[%emt 0:00:02]} Kh7 {[%emt 0:00:03]} 45. Qc7+ {[%emt 0:00:01]} 1-0

[Event "RUS-ch Blitz Women 2018"]
[Site "Sochi"]
[Date "2018.10.07"]
[Round "13"]
[White "Maltsevskaya, Aleksandra"]
[Black "Styazhkina, Anna"]
[Result "1-0"]
[ECO "A22"]
[WhiteElo "2290"]
[BlackElo "2268"]
[Annotator "NA"]
[PlyCount "59"]
[EventDate "2018.10.07"]
[EventType "swiss"]
[EventCountry "RUS"]
[SourceTitle "playchess.com"]
[Source "ChessBase"]
[SourceQuality "1"]
[TimeControl "180+2"]

1. c4 {[%emt 0:00:00]} e5 {[%emt 0:00:00]} 2. Nc3 {[%emt 0:00:01]} Nf6 {[%emt 0:00:01]} 3. e3 {[%emt 0:00:02]} d5 {[%emt 0:00:19]} 4. cxd5 {[%emt 0:00:12]} Nxd5 {[%emt 0:00:02]} 5. Qh5 {[%emt 0:00:21]} Nb4 {[%emt 0:00:36]} 6. Qxe5+ {[%emt 0:00:19]} Be7 {[%emt 0:00:02]} 7. Qe4 {[%emt 0:00:41]} g6 {[%emt 0:01:10]} 8. g4 {[%emt 0:00:44]} Bd7 {[%emt 0:00:31]} 9. f3 {[%emt 0:00:17]} Bc6 {[%emt 0:00:04]} 10. Qb1 {[%emt 0:00:02]} O-O {[%emt 0:00:03]} 11. a3 {[%emt 0:00:07]} Bh4+ 12. Kd1 Nd5 {[%emt 0:00:05]} 13. d4 {[%emt 0:00:18]} Re8 {[%emt 0:00:12]} 14. Qd3 {[%emt 0:00:03]} Nxc3+ {[%emt 0:00:10]} 15. Qxc3 {[%emt 0:00:05]} Qd5 {[%emt 0:00:02]} 16. Bd2 {[%emt 0:00:04]} Ba4+ {[%emt 0:00:01]} 17. Kc1 {[%emt 0:00:02]} Nc6 {[%emt 0:00:03]} 18. Bc4 {[%emt 0:00:06]} Qd7 {[%emt 0:00:01]} 19. b3 {[%emt 0:00:02]} b5 {[%emt 0:00:06]} 20. Bd3 {[%emt 0:00:06]} Bf6 {[%emt 0:00:02]} 21. Ne2 {[%emt 0:00:03]} a5 {[%emt 0:00:05]} 22. bxa4 {[%emt 0:00:01]} b4 {[%emt 0:00:01]} 23. Qc2 {[%emt 0:00:04]} Rab8 {[%emt 0:00:03]} 24. Bb5 {[%emt 0:00:02]} Rb6 {[%emt 0:00:03]} 25. axb4 {[%emt 0:00:04]} Qd6 {[%emt 0:00:03]} 26. bxa5 {[%emt 0:00:01]} Rxb5 {[%emt 0:00:02]} 27. axb5 {[%emt 0:00:01]} Nb4 {[%emt 0:00:03]} 28. Qc4 {[%emt 0:00:02]} Nd5 {[%emt 0:00:01]} 29. e4 {[%emt 0:00:02]} Ne7 {[%emt 0:00:04]} 30. e5 {[%emt 0:00:01]} 1-0